Cogmind - Beta 10.2 @@@ ROGUE MODE // 2021.04.07 @ 12:16:15 Player: Bugge Result: Destroyed by D-53 Grenadier with Mini Grenade Launcher Performance ------------- Evolutions (0) 0 Regions Visited (4) 800 Robots Destroyed (7) 35 Value Destroyed (179) 179 Prototype IDs (1) 20 Alien Tech Used (0) 0 Bonus (300) 300 TOTAL SCORE: 1334 Bonus ------- Aligned with FarCom 300 Cogmind --------- Core Integrity 0/250 Matter 232/300 Energy 96/100 System Corruption 5% Temperature Cool (0) Movement Rolling (80) Location -9/Mines Parts ------- > --- POWER (1) -------- (None) > --- PROPULSION (2) --- Wheel > --- UTILITY (2) ------ Skeleton Box > --- WEAPON (2) ------- (None) > --- INVENTORY (4) ---- Signal Interpreter Seismic Analyzer Heavy Explosive Trap Heavy Explosive Trap Peak State ------------ > --- POWER ------------ Light Ion Engine > --- PROPULSION ------- Aluminum Leg Aluminum Leg > --- UTILITY ---------- Skeleton Box > --- WEAPON ----------- Flak Cannon Flak Cannon > --- INVENTORY -------- Signal Interpreter Seismic Analyzer Heavy Explosive Trap Heavy Explosive Trap [Rating: 16] Favorites ----------- Power Light Ion Engine Engine Light Ion Engine Propulsion Aluminum Leg Leg Aluminum Leg Wheel Wheel Utility Skeleton Box Device Skeleton Box Weapon Flak Cannon Energy Gun EM Pulse Gun Ballistic Gun Assault Rifle Ballistic Cannon Flak Cannon Build | -11 -10 -10 -10 -9 ------- Run | Scr Mat Min Exi Min Slots Evolved . | . . . . . Power . | . . . . . Propulsion . | . . . . . Utility . | . . . . . Weapon . | . . . . . Parts Attached 17 | 5 4 6 1 1 Power 3 | 1 1 1 . . Engine 3 | 1 1 1 . . Core . | . . . . . Reactor . | . . . . . Propulsion 5 | 2 . 2 . 1 Treads . | . . . . . Leg 4 | 2 . 2 . . Wheel 1 | . . . . 1 Hover . | . . . . . Flight . | . . . . . Utility 1 | . . . 1 . Device 1 | . . . 1 . Storage . | . . . . . Processor . | . . . . . Hackware . | . . . . . Protection . | . . . . . Artifact . | . . . . . Weapon 8 | 2 3 3 . . Energy Gun 1 | 1 . . . . Energy Cannon . | . . . . . Ballistic Gun 5 | 1 3 1 . . Ballistic Cannon 2 | . . 2 . . Launcher . | . . . . . Special Weapon . | . . . . . Impact Weapon . | . . . . . Slashing Weapon . | . . . . . Piercing Weapon . | . . . . . Special Melee Weapon . | . . . . . Unidentified Prototypes 1 | . . . 1 . Parts Lost 6 | . 1 . . 5 Power 2 | . 1 . . 1 Propulsion 2 | . . . . 2 Utility . | . . . . . Weapon 2 | . . . . 2 Highest Loss Streak 5 | . 1 . . 5 Average Slot Usage (%) 70 | . 69 63 72 78 Engine 12 | . 13 7 14 13 Leg 27 | . 28 27 28 24 Device 1 | . . . 1 14 Ballistic Gun 2 | . 18 . . . Ballistic Cannon 24 | . . 26 28 26 Naked Turns . | . . . . . Heaviest Build 17 | 7 7 15 17 17 Greatest Support 20 | 20 20 20 20 20 Greatest Overweight (x) . | . . . . . Average Overweight (x) . | . . . . . Largest Inventory Capacity 4 | 4 4 4 4 4 Average Capacity 4 | 4 4 4 4 4 Most Carried 4 | 4 3 4 4 4 Average Carried 2 | 1 . 3 3 3 Final Capacity 4 | 4 4 4 4 4 Final Carried 4 | . 1 4 3 4 Class Distribution -------------------- 100% | Mutant Dominant Class ---------------- Mutant | -10/Materials Mutant | -10/Mines Mutant | -10/Exiles Mutant | -9/Mines Resources | -11 -10 -10 -10 -9 ----------- Run | Scr Mat Min Exi Min Matter Collected 521 | 259 35 51 . 176 Remotely . | . . . . . Salvage Created 155 | 41 . 28 . 86 Parts 9 | 1 . 4 . 4 Haulers Intercepted . | . . . . . Recyclers Shooed . | . . . . . Parts Field Recycled . | . . . . . Retrieved Matter . | . . . . . Parts Self-Destructed . | . . . . . Prevented . | . . . . . Kills | -11 -10 -10 -10 -9 ------- Run | Scr Mat Min Exi Min Combat Hostiles Destroyed 8 | 1 . 3 . 4 Guns 1 | 1 . . . . Cannons 7 | . . 3 . 4 Classes Destroyed 4 | 1 . 1 . 2 Swarmer 3 | . . 3 . . Grunt 3 | 1 . . . 2 Duelist 1 | . . . . 1 Assembled 1 | . . . . 1 Best Kill Streak 3 | 1 . 2 . 3 Combat Bots Only 3 | 1 . 2 . 3 Max Kills in Single Turn 1 | 1 . 1 . 1 Gunslinging . | . . . . . Exploded . | . . . . . Melee . | . . . . . Uniques/NPCs Destroyed . | . . . . . Combat | -11 -10 -10 -10 -9 -------- Run | Scr Mat Min Exi Min Damage Taken 849 | 20 65 51 . 713 Core 254 | . 11 9 . 234 Absorbed by Shields . | . . . . . Core Remaining (%) 100 | 100 . . . . Volleys Fired 26 | 3 6 5 . 12 Largest 2 | 2 2 2 . 2 Hottest 88 | 60 60 88 . 88 Shots Fired 52 | 6 12 10 . 24 Gun 18 | 6 12 . . . Cannon 34 | . . 10 . 24 Launcher . | . . . . . Special . | . . . . . Kinetic 47 | 3 10 10 . 24 Thermal . | . . . . . Explosive . | . . . . . Electromagnetic 5 | 3 2 . . . Robot Hit Streak 6 | 2 5 3 . 6 Robot Miss Streak 12 | 2 2 6 . 12 Penetration Max . | . . . . . Secondary Targets . | . . . . . Shots Hit Robots 37 | 3 8 7 . 19 Core Hits 26 | 1 . 5 . 20 Critical Hits . | . . . . . Critical Kills . | . . . . . Critical Parts Destroyed . | . . . . . Melee Attacks . | . . . . . Impact . | . . . . . Slashing . | . . . . . Piercing . | . . . . . Sneak Attacks . | . . . . . Combat Hostiles . | . . . . . Follow-up Attacks . | . . . . . Damage Inflicted 534 | 39 83 65 . 347 Guns 122 | 39 83 . . . Cannons 412 | . . 65 . 347 Explosions . | . . . . . Melee . | . . . . . Ramming . | . . . . . Kinetic 485 | 12 61 65 . 347 Thermal . | . . . . . Explosive . | . . . . . Electromagnetic 49 | 27 22 . . . Impact . | . . . . . Slashing . | . . . . . Piercing . | . . . . . Highest Corruption 5 | . . . . 5 Average Corruption 5 | . . . . 5 Corruption Purged . | . . . . . Effects 1 | . . . . 1 Matter Fused 1 | . . . . 1 Overload Shots . | . . . . . Overflow Damage . | . . . . . Projectiles . | . . . . . Explosions . | . . . . . Melee . | . . . . . Knockbacks 16 | . . 2 . 14 Impact . | . . . . . Kinetic 16 | . . 2 . 14 Secondary . | . . . . . Self-Inflicted Damage . | . . . . . Shots . | . . . . . Rammed . | . . . . . Targets Rammed . | . . . . . Kicked . | . . . . . Crushed . | . . . . . Highest Temperature 326 | 12 8 54 . 326 Average Temperature 102 | 10 8 19 . 146 Received Heat Transfer 198 | 12 36 . . 150 Effects 1 | . . . . 1 Energy Bleed 1 | . . . . 1 Siege Activations . | . . . . . Robots Corrupted . | . . . . . Combat Hostiles . | . . . . . Parts Fried . | . . . . . Impact Corruptions . | . . . . . Robots Melted . | . . . . . Combat Hostiles . | . . . . . Parts Melted . | . . . . . Heat Transferred . | . . . . . Parts Sabotaged . | . . . . . Parts Stolen . | . . . . . Parts Stripped . | . . . . . Power Chain Reactions . | . . . . . Missiles Intercepted . | . . . . . Alert | -11 -10 -10 -10 -9 ------- Run | Scr Mat Min Exi Min Peak Influence 97 | 20 43 97 . 85 Initial 13 | . 13 12 . . Average 32 | 3 25 29 . 65 Maximum Alert Level . | . . . . . Low Security (%) 100 | 100 100 100 . 100 Level 1 . | . . . . . Level 2 . | . . . . . Level 3 . | . . . . . Level 4 . | . . . . . Level 5 . | . . . . . High Security . | . . . . . Max Security . | . . . . . Squads Dispatched 1 | . 1 . . . Investigation . | . . . . . Extermination . | . . . . . Reinforcement 1 | . 1 . . . Assault . | . . . . . Garrison . | . . . . . Intercept . | . . . . . Construction Impeded . | . . . . . Haulers Reinforced . | . . . . . Stealth | -11 -10 -10 -10 -9 --------- Run | Scr Mat Min Exi Min Distress Signals 1 | . 1 . . . Communications Jammed . | . . . . . Distress Signals . | . . . . . Times Spotted 31 | 1 8 4 . 18 Peak Tracking Total 15 | 1 7 3 . 15 Tactical Retreats 2 | . . 1 . 1 Traps | -11 -10 -10 -10 -9 ------- Run | Scr Mat Min Exi Min Traps Triggered 3 | . 1 2 . . Indirectly . | . . . . . Trap Hack Attempts . | . . . . . Triggered . | . . . . . Disarmed . | . . . . . Reprogrammed . | . . . . . Reused . | . . . . . Traps Extracted . | . . . . . Installed . | . . . . . Triggered . | . . . . . Machines | -11 -10 -10 -10 -9 ---------- Run | Scr Mat Min Exi Min Machines Disabled . | . . . . . Max in Single Turn . | . . . . . Machines Sabotaged . | . . . . . Garrisons Compromised . | . . . . . Overloaded Fab Kills . | . . . . . Fab Network Shutdowns . | . . . . . Hacking | -11 -10 -10 -10 -9 --------- Run | Scr Mat Min Exi Min Machines Accessed 3 | . . 1 2 . Terminals . | . . . . . Fabricators . | . . . . . Repair Stations . | . . . . . Recycling Units . | . . . . . Scanalyzers . | . . . . . Garrison Access . | . . . . . Total Hacks 33 | . . 1 32 . Successful 33 | . . 1 32 . Failed . | . . . . . Catastrophic . | . . . . . Database Lockouts . | . . . . . Manual 3 | . . . 3 . Terminals . | . . . . . Fabricators . | . . . . . Repair Stations . | . . . . . Recycling Units . | . . . . . Scanalyzers . | . . . . . Garrison Access . | . . . . . Terminal Hacks 33 | . . 1 32 . Record 32 | . . . 32 . Open Door 1 | . . 1 . . Fabricator Hacks . | . . . . . Repair Station Hacks . | . . . . . Recycling Unit Hacks . | . . . . . Scanalyzer . | . . . . . Garrison Access Hacks . | . . . . . Unauthorized Hacks . | . . . . . Terminals . | . . . . . Fabricators . | . . . . . Repair Stations . | . . . . . Recycling Units . | . . . . . Scanalyzers . | . . . . . Garrison Access . | . . . . . Data Cores Recovered . | . . . . . Used . | . . . . . Hacking Detections . | . . . . . Full Trace Events . | . . . . . Feedback Events . | . . . . . Feedback Blocked . | . . . . . Robot Schematics Acquired . | . . . . . Robots Built . | . . . . . Matter . | . . . . . Time . | . . . . . Total Robot Build Rating . | . . . . . Part Schematics Acquired . | . . . . . Parts Built . | . . . . . Matter . | . . . . . Time . | . . . . . Total Part Build Rating . | . . . . . Parts Repaired . | . . . . . Time . | . . . . . Parts Recycled . | . . . . . Recycled Matter . | . . . . . Retrieved Matter . | . . . . . Retrieved Components . | . . . . . Parts Scanalyzed . | . . . . . Part Schematics Acquired . | . . . . . Parts Damaged . | . . . . . Bothacking | -11 -10 -10 -10 -9 ------------ Run | Scr Mat Min Exi Min Used RIF Installer . | . . . . . Robots Hacked . | . . . . . Non-combat . | . . . . . Combat . | . . . . . Robot Hacks Applied . | . . . . . Relay Couplers Released . | . . . . . Robots Rewired . | . . . . . Allies Hacked . | . . . . . Hacks Repelled . | . . . . . Allies | -11 -10 -10 -10 -9 -------- Run | Scr Mat Min Exi Min Total Allies . | . . . . . Largest Group . | . . . . . Highest-Rated Group . | . . . . . Highest-Rated Ally . | . . . . . Total Orders . | . . . . . Ally Attacks . | . . . . . Total Damage . | . . . . . Kills . | . . . . . Allies Corrupted . | . . . . . Allies Melted . | . . . . . Intel | -11 -10 -10 -10 -9 ------- Run | Scr Mat Min Exi Min Robot Analysis Total . | . . . . . Derelict Logs Recovered 2 | . . 2 . . Drone Launches . | . . . . . Drone Recoveries . | . . . . . Exploration | -11 -10 -10 -10 -9 ------------- Run | Scr Mat Min Exi Min Turns Passed 2076 | 60 208 568 1077 163 Spaces Moved 1633 | 63 150 436 888 96 Core 68 | 47 . . . 21 Treads . | . . . . . Legs 1562 | 16 150 436 888 72 Wheels 3 | . . . . 3 Hover . | . . . . . Flight . | . . . . . Fastest Speed 50 | 50 120 120 120 50 Average Speed 117 | 67 120 120 120 103 Slowest Speed 120 | 120 120 120 120 120 Overloaded Moves . | . . . . . Propulsion Burnouts . | . . . . . Robots Hopped . | . . . . . Cave-ins Triggered . | . . . . . Exploration Rate (%) 45 | 7 24 74 92 31 Regions Visited 4 Branch Regions 3 Pre-discovered Areas 2 | . . 1 1 . Known Exits Taken . | . . . . . Unknown Exits Taken 4 | 1 1 1 1 . Scrap Searched 3 | . . 1 . 2 Spaces Dug . | . . . . . Terrain Destroyed . | . . . . . Melee . | . . . . . Projectile . | . . . . . AOE . | . . . . . Terrain Rammed . | . . . . . Walls Destroyed . | . . . . . Machines Disabled . | . . . . . Actions | -11 -10 -10 -10 -9 --------- Run | Scr Mat Min Exi Min Total 1746 | 74 166 471 900 135 Wait 45 | . . 12 8 25 Move 1629 | 62 149 435 887 96 Hop . | . . . . . Pick Up 22 | 4 5 10 2 1 Fast Attach 3 | 1 . 1 . 1 Attach 11 | 4 2 4 1 . Detach . | . . . . . Swap 3 | . 2 1 . . Drop 7 | . 2 3 2 . Fire 26 | 3 6 5 . 12 Melee . | . . . . . Ram . | . . . . . Kick . | . . . . . Crush . | . . . . . Escape Stasis . | . . . . . Rewire . | . . . . . Trap . | . . . . . Miscellaneous . | . . . . . Route ------- -11/Scrapyard -10/Materials -10/Mines (discovered 2 exits: [*Mat] / *Exi) -10/Exiles (discovered 2 exits: [*Min x2]) -9/Mines History --------- Turn | Location | Event 2 | -11/Scrapyard | Met Revision 17 41 | -11/Scrapyard | Discovered new exit (range 8) 61 | -11/Scrapyard | Entered Materials 184 | -10/Materials | Discovered new exit (range 15) 269 | -10/Materials | Entered Mines 274 | -10/Mines | Met a Derelict who couldn't figure out how to use a Trap Extractor 274 | -10/Mines | Met a Derelict bent on vengeance 338 | -10/Mines | Received a Rocket Launcher from a helpful Derelict 340 | -10/Mines | Found a hidden stash of uninstalled traps 346 | -10/Mines | Build established: Mutant 396 | -10/Mines | Discovered new exit (range 11) 456 | -10/Mines | Learned location of Zion (-7) 503 | -10/Mines | Learned location of 1 exit from Materials 787 | -10/Mines | Deemed a non-threat by the Exiles lab entrance 788 | -10/Mines | Discovered new exit (range 5) 837 | -10/Mines | Entered Exiles 874 | -10/Exiles | Met 8R-AWN 892 | -10/Exiles | Met EX-HEX 939 | -10/Exiles | Met EX-DEC 992 | -10/Exiles | Discovered new exit (range 14) 1085 | -10/Exiles | Met EX-BIN 1102 | -10/Exiles | Aligned with FarCom system 1103 | -10/Exiles | Given EX-Vault access code 1295 | -10/Exiles | Visited The Gauntlet 1527 | -10/Exiles | Discovered new exit (range 14) 1792 | -10/Exiles | Opened EX-Vault 1799 | -10/Exiles | Found Prototype Device 1812 | -10/Exiles | Identified Skeleton Box 1829 | -10/Exiles | Warned to stay clear of 0b10 Research branches 1914 | -10/Exiles | Left Exiles lab with Skeleton Box 1914 | -10/Exiles | Entered Mines 2024 | -9/Mines | Assembled infested the area 2063 | -9/Mines | Core integrity fell below 50% 2065 | -9/Mines | Core integrity fell below 20% 2077 | -9/Mines | Destroyed by D-53 Grenadier with Mini Grenade Launcher Last Messages --------------- 02051_ as-48601 destroyed. 02051_ as-91802 destroyed. 02051_ as-22094 destroyed. 02051_ as-12352 destroyed. 02054_ as-60704 knocked back. 02057_ The unstable cave ceiling collapses. 02057_ D-53 Grenadier knocked back. 02058_ as-60704 destroyed. 02059_ as-26065 destroyed. 02059_ as-14868 destroyed. 02060_ D-53 Grenadier knocked back. 02061_ Flak Cannon destroyed. 02061_ Lgt. Ion Engine destroyed. 02062_ The unstable cave ceiling collapses. 02063_ Flak Cannon destroyed. 02063_ Aluminum Leg destroyed. 02067_ The unstable cave ceiling collapses. 02070_ System corrupted: Matter fused (-6). 02072_ Acquired 19 matter. 02073_ Acquired Wheel. Map ----- +----------------------------------------------------+ | ??## ## #?????????????????????????????? | | ??# #?????????????????????????????? | | ??# ####??????????????????????????? | | ?## ###????????????????????????? | | ## ###???????????????????????? | | # #???????????????????????? | | " ##??????????????????????? | | %" #??????????????????????? | | ###### ###????????????????????? | | ?????## !=! ##???????????????????? | | ??????# =% #???????????????????? | | ??????## ## #???????????????????? | | ???????# ## #???????????????????? | | ???????# ## #???????????????????? | | ??????? ## #???????????????????? | | ?????? ## # #### #??????###??????????? | | ????? ##### #?#d ##?????# ##?????????? | | ????# ????## ###d ##?#### ##????????? | | ???? ?????## ### ###### ## k ##???????? | | ??? #???????##??####### ???????? | | ??? ??????????????# ??????? | | ???????????????????# #### ##??????? | | ????????????????#### #### #??????? | | ????????????????# ?????? | | ???????????????# ####????????? | | ??????????????# #### @ ! < #???????????? | | ?????????????# ??????## #???????????? | | ????????????????????????## ### #???????????? | | ?????????????????????????####??# #???????????? | | ????????????????????????????????# #???????????? | | ?????????????????????????????????# ##???????????? | | ??????????????????????????????????###????????????? | | ?????????????????????????????????????????????????? | | ?????????????????????????????????????????????????? | | ?????????????????????????????????????????????????? | | ?????????????????????????????????????????????????? | | ?????????????????????????????????????????????????? | | ?????????????????????????????????????????????????? | | ?????????????????????????????????????????????????? | | ?????????????????????????????????????????????????? | | ?????????????????????????????????????????????????? | | ?????????????????????????????????????????????????? | | ?????????????????????????????????????????????????? | | ?????????????????????????????????????????????????? | | ?????????????????????????????????????????????????? | | ?????????????????????????????????????????????????? | | ?????????????????????????????????????????????????? | | ?????????????????????????????????????????????????? | | ?????????????????????????????????????????????????? | | ?????????????????????????????????????????????????? | +----------------------------------------------------+ Best States ------------- Heat Dissipation 25 Energy Generation 10 Energy Capacity 125 Matter Stores 300 Matter Capacity 300 Sight Range 16 Terrain Scan Density 10 Evasion (%) 50 Item Schematics ----------------- None Robot Schematics ------------------ None Fabricated ------------ Nothing Alien Tech Used ----------------- None Achievements -------------- Librarian More Dakka Please Tourist Challenges ------------ None Game ------ Seed CooledPowerFlail Manual? 0 Play Time 00:28:32 Cumulative 3.1 hours Start 2021.04.06 @ 11:07:23 End 2021.04.07 @ 12:16:15 Sessions 3 Manual Loads 0 Difficulty Rogue Special Mode None Game No. 3 Rogue 3 Adventurer 0 Explorer 0 Win Type - Total 0 Types 0/0/0/0/0/0/0/0/0 Lore% 6 Gallery% 6 Achievement% 7 Wizard Run 0 Options --------- ASCII 0 Keyboard 0 Movement Mouse Keybinds 0 Fullscreen 2 Font 18/SmallcapsGlow Map View 76x50 Tactical HUD 1 Map Filters NONE Filters NONE Steam 1 RUN: 1998a321-fe5b-4985-9fda-eca8ceaf23b4